bitfinex/quotes_SOLUSD_20250305
["timestamp","ask_amount","ask_price","bid_price","bid_amount"]
[1741212251260,0.033,145.46,145.42,37.58763108]
[1741212251465,0.033,145.46,145.43,1.6356]
[1741212251667,0.033,145.46,145.43,13.55502065]
[1741212252354,0.033,145.46,145.43,20.43112065]
[1741212253066,11.95242065,145.46,145.43,1.6356]
[1741212253270,11.91942065,145.45,145.43,1.6356]
[1741212254562,11.91942065,145.45,145.41,218.19606319]
[1741212254880,11.91942065,145.44,145.41,81.29606319]
[1741212256566,11.91942065,145.43,145.41,81.29606319]
[1741212258670,22.72233783,145.44,145.41,81.29606319]
[1741212265472,22.72233783,145.44,145.41,393.29606319]
[1741212265980,22.72233783,145.44,145.41,81.29606319]
[1741212267875,11.91942065,145.43,145.41,81.29606319]
[1741212269079,11.91942065,145.42,145.41,0.03]
[1741212272483,11.91942065,145.43,145.41,0.03]
[1741212272683,10.80291718,145.44,145.41,0.03]
[1741212272987,15.54760441,145.42,145.41,0.03]
[1741212273187,15.54760441,145.42,145.4,0.03]
[1741212274000,10.76991718,145.43,145.4,0.03]
[1741212274395,22.68933783,145.43,145.4,0.03]
[1741212275008,11.91942065,145.42,145.4,0.03]
[1741212275879,10.76991718,145.41,145.4,0.03]
[1741212282714,22.68933783,145.41,145.4,0.03]
[1741212284123,10.76991718,145.41,145.4,0.03]
[1741212285514,11.91942065,145.42,145.4,0.03]
[1741212286205,11.91942065,145.41,145.4,0.03]
[1741212288496,11.91942065,145.42,145.4,0.03]
[1741212289307,11.91942065,145.41,145.4,0.03]
[1741212290093,10.76991718,145.42,145.4,0.03]
[1741212290993,22.68933783,145.42,145.4,0.03]
[1741212291317,11.91942065,145.41,145.4,0.03]
[1741212292924,10.80291718,145.44,145.4,0.03]
[1741212293222,10.80291718,145.44,145.41,19.67422065]
[1741212293395,10.80291718,145.44,145.42,11.91942065]
[1741212293721,10.80291718,145.44,145.42,86.59838384]
[1741212294011,0.033,145.44,145.43,37.87165422]
[1741212294418,0.033,145.44,145.43,342.71123108]
[1741212294906,0.033,145.44,145.43,330.79181043]
[1741212295095,0.033,145.44,145.43,342.71123108]
[1741212295804,0.033,145.44,145.43,349.58733108]
[1741212296114,0.033,145.44,145.43,561.16629427]
[1741212300530,0.033,145.46,145.45,45.353472]
[1741212300710,0.0001,145.46,145.45,270.57934399]
[1741212301029,10.76991718,145.5,145.49,40.512372]
[1741212301204,10.76991718,145.5,145.49,270.29075584]
[1741212301403,10.76991718,145.5,145.49,270.57507898]
[1741212301613,10.76991718,145.5,145.49,270.14859427]
[1741212301825,10.76991718,145.5,145.49,250.0064327]
[1741212302507,10.76991718,145.5,145.49,256.68098963]
[1741212303229,10.76991718,145.5,145.49,82.53736319]
[1741212304213,0.033,145.51,145.49,82.53736319]
[1741212305029,0.033,145.51,145.49,101.13134077]
[1741212305232,0.033,145.51,145.5,18.59397758]
[1741212305429,0.033,145.51,145.5,37.38578801]
[1741212305805,0.033,145.51,145.5,18.59397758]
[1741212306010,0.033,145.51,145.49,101.13134077]
[1741212306507,0.033,145.51,145.5,37.24362644]
[1741212306707,0.033,145.51,145.5,112.0647512]
[1741212306923,0.033,145.51,145.5,250.83409531]
[1741212307219,0.033,145.51,145.5,256.26403591]
[1741212308523,0.033,145.51,145.5,568.26403591]
[1741212312547,0.033,145.51,145.5,560.9647512]
[1741212312845,0.033,145.51,145.5,248.9647512]
[1741212313637,0.033,145.51,145.5,255.8375512]
[1741212314446,0.033,145.51,145.5,256.12187434]
[1741212314655,0.033,145.51,145.5,256.26403591]
[1741212315719,0.033,145.51,145.5,568.26403591]
[1741212317423,0.033,145.56,145.55,18.73613915]
[1741212317622,0.033,145.56,145.55,248.9647512]
[1741212318647,0.033,145.56,145.55,230.37077362]
[1741212320635,0.033,145.56,145.55,542.37077362]
[1741212321354,0.033,145.56,145.55,560.9647512]
[1741212322560,0.033,145.56,145.55,554.26239025]
[1741212324327,0.033,145.56,145.55,211.57896319]
[1741212327535,0.033,145.56,145.55,74.67896319]
[1741212330455,0.033,145.56,145.53,211.57896319]
[1741212330653,11.92461663,145.56,145.53,211.57896319]
[1741212331054,0.033,145.56,145.53,211.57896319]
[1741212331354,0.033,145.56,145.53,223.47057982]
[1741212332748,0.033,145.56,145.53,211.57896319]
[1741212333546,0.033,145.56,145.53,386.67896319]
[1741212335762,0.033,145.56,145.54,18.64964886]
[1741212336073,0.033,145.56,145.55,39.38131177]
[1741212336232,0.033,145.57,145.56,19.21829514]
[1741212336435,0.033,145.59,145.58,39.21829514]
[1741212336637,0.033,145.59,145.58,264.13054162]
[1741212336837,0.033,145.59,145.58,262.68887496]
[1741212337541,0.033,145.59,145.58,269.55787496]
[1741212338567,0.033,145.59,145.58,276.23081935]
[1741212339070,0.033,145.59,145.58,588.23081935]
[1741212339466,0.033,145.59,145.58,581.21965778]
[1741212339678,0.033,145.59,145.58,587.39965778]
[1741212340474,0.033,145.59,145.58,594.41081935]
[1741212342165,0.033,145.6,145.59,19.21829514]
[1741212342372,0.033,145.64,145.62,39.21829514]
[1741212342545,0.033,145.64,145.62,270.80314088]
[1741212342864,0.033,145.64,145.62,269.36181935]
[1741212343757,20.19306102,145.71,145.68,0.14216157]
[1741212343758,0.033,145.71,145.68,0.14216157]
[1741212343960,0.033,145.71,145.69,24.72456102]
[1741212345260,0.033,145.71,145.69,336.72456102]
[1741212346281,0.033,145.71,145.69,6.16]
[1741212348154,0.033,145.71,145.68,74.64596319]
[1741212349550,18.59756102,145.71,145.68,74.64596319]
[1741212352972,18.59756102,145.7,145.68,74.64596319]
[1741212354969,18.56456102,145.69,145.66,312.0]
[1741212355151,18.56456102,145.68,145.65,74.64596319]
[1741212359684,18.56456102,145.67,145.63,312.0]
[1741212359990,0.17516157,145.7,145.61,74.64596319]
[1741212359991,18.56456102,145.64,145.61,74.64596319]
[1741212360159,18.56456102,145.63,145.58,76.35996319]
[1741212361078,18.56456102,145.64,145.58,94.92452421]
[1741212362383,18.56456102,145.63,145.58,76.35996319]
[1741212362770,18.56456102,145.63,145.58,388.35996319]
[1741212363494,0.033,145.7,145.62,38.56456102]
[1741212363657,18.59756102,145.7,145.64,18.56456102]
[1741212363864,0.033,145.7,145.65,18.56456102]
[1741212364201,18.59756102,145.7,145.65,74.64596319]
[1741212364786,18.56456102,145.68,145.65,74.64596319]
[1741212365002,0.033,145.7,145.69,27.31869514]
[1741212365167,0.033,145.72,145.69,258.86988116]
[1741212365367,0.033,145.72,145.71,57.35637145]
[1741212365694,0.033,145.72,145.71,58.79706159]
[1741212366497,0.033,145.72,145.71,332.0]
[1741212366794,0.033,145.72,145.71,338.8629]
[1741212367000,0.033,145.72,145.71,357.42746102]
[1741212368393,0.033,145.72,145.71,588.04955778]
[1741212371339,18.56456102,145.81,145.73,0.14216157]
[1741212371523,18.56456102,145.81,145.73,250.34265152]
[1741212371833,18.56456102,145.78,145.73,211.54596319]
[1741212372417,18.56456102,145.76,145.73,74.64596319]
[1741212373237,18.56456102,145.75,145.71,74.64596319]
[1741212373439,18.56456102,145.73,145.71,74.64596319]
[1741212373825,0.14216157,145.79,145.68,211.54596319]
[1741212373826,18.56456102,145.72,145.68,211.54596319]
[1741212374047,18.56456102,145.72,145.68,74.64596319]
[1741212374544,18.56456102,145.73,145.68,386.64596319]
[1741212374713,18.56456102,145.72,145.68,386.64596319]
[1741212377844,17.56456102,145.72,145.68,386.64596319]
[1741212379132,18.56456102,145.73,145.68,386.64596319]
[1741212379531,87.4934,145.77,145.7,18.56456102]
[1741212379849,17.1196171,145.82,145.73,18.56456102]
[1741212380034,18.56456102,145.79,145.73,230.11052421]
[1741212380237,18.56456102,145.79,145.73,93.21052421]
[1741212382047,18.56456102,145.8,145.74,18.56456102]
[1741212382248,18.56456102,145.81,145.75,18.56456102]
[1741212382622,18.56456102,145.8,145.74,312.0]
[1741212382831,18.56456102,145.8,145.74,386.64596319]
[1741212383028,18.56456102,145.79,145.74,386.64596319]
[1741212384248,18.56456102,145.8,145.74,386.64596319]
[1741212384655,18.56456102,145.81,145.75,18.56456102]
[1741212385446,18.56456102,145.81,145.75,93.21052421]
[1741212385651,18.56456102,145.8,145.75,74.64596319]
[1741212386053,18.56456102,145.81,145.75,93.21052421]
[1741212387570,18.56456102,145.81,145.75,100.07132421]
[1741212387940,18.56456102,145.81,145.75,93.21052421]
[1741212388157,18.56456102,145.8,145.75,74.64596319]
[1741212388463,18.56456102,145.8,145.75,386.64596319]
[1741212388660,20.22346102,145.84,145.75,74.64596319]
[1741212388661,18.56456102,145.79,145.75,74.64596319]
[1741212388867,20.22346102,145.84,145.75,74.64596319]
[1741212388868,18.56456102,145.77,145.75,74.64596319]
[1741212389164,18.56456102,145.76,145.73,74.64596319]
[1741212389663,81.0,145.81,145.73,74.64596319]
[1741212389838,18.56456102,145.8,145.74,18.56456102]
[1741212390263,18.56456102,145.79,145.73,100.07242421]
[1741212390662,81.0,145.83,145.73,100.07242421]
[1741212390855,18.56456102,145.8,145.74,18.56456102]
[1741212391036,18.56456102,145.8,145.74,93.21052421]
[1741212391561,18.56456102,145.79,145.74,74.64596319]
[1741212391855,18.56456102,145.79,145.74,386.64596319]
[1741212392054,18.56456102,145.77,145.74,74.64596319]
[1741212392366,18.56456102,145.77,145.71,93.21052421]
[1741212394159,18.56456102,145.78,145.72,18.56456102]
[1741212394969,18.56456102,145.78,145.72,330.56456102]
[1741212395768,18.56456102,145.78,145.72,405.21052421]
[1741212396470,18.56456102,145.76,145.72,74.64596319]
[1741212396657,18.56456102,145.75,145.72,74.64596319]
[1741212399867,18.56456102,145.76,145.72,74.64596319]
[1741212401876,18.56456102,145.77,145.72,74.64596319]
[1741212403587,18.56456102,145.77,145.72,81.50826319]
[1741212404088,18.56456102,145.78,145.72,100.07282421]
[1741212404980,81.0,145.8,145.72,393.50826319]
[1741212405172,18.56456102,145.77,145.72,393.50826319]
[1741212405571,18.56456102,145.76,145.72,386.67596319]
[1741212408874,18.56456102,145.76,145.72,74.67596319]
[1741212410983,18.56456102,145.74,145.72,74.67596319]
[1741212411372,18.56456102,145.75,145.72,74.67596319]
[1741212411572,18.56456102,145.76,145.72,74.67596319]
[1741212412285,18.56456102,145.75,145.72,74.67596319]
[1741212415372,18.56456102,145.73,145.72,74.67596319]
[1741212415786,18.56456102,145.73,145.72,0.03]
[1741212417484,18.70672259,145.73,145.72,0.03]
[1741212417870,37.35637145,145.73,145.72,0.03]
[1741212418092,0.14216157,145.72,145.66,74.64596319]
[1741212418296,18.56456102,145.68,145.66,74.64596319]
[1741212419662,18.56456102,145.67,145.63,74.64596319]
[1741212419867,18.56456102,145.64,145.63,74.64596319]
[1741212420123,18.56456102,145.64,145.61,82.44036319]
[1741212420274,18.56456102,145.63,145.61,82.44036319]
[1741212421584,18.56456102,145.64,145.61,82.44036319]
[1741212422183,91.6918171,145.7,145.61,101.00492421]
[1741212422488,18.56456102,145.66,145.61,82.44036319]
[1741212422691,18.56456102,145.66,145.61,394.44036319]
[1741212423085,18.56456102,145.64,145.61,394.44036319]
[1741212423280,18.56456102,145.64,145.61,82.44036319]
[1741212423598,18.56456102,145.63,145.61,82.44036319]
[1741212425093,18.56456102,145.64,145.61,82.44036319]
[1741212425396,18.56456102,145.65,145.61,82.44036319]
[1741212426381,18.56456102,145.64,145.61,394.44036319]
[1741212426894,18.56456102,145.64,145.61,74.64596319]
[1741212427396,18.56456102,145.63,145.61,74.64596319]
[1741212427638,0.14216157,145.67,145.59,74.64596319]
[1741212427639,18.56456102,145.62,145.59,74.64596319]
[1741212428483,18.56456102,145.63,145.59,74.64596319]
[1741212429300,18.56456102,145.63,145.59,81.51446319]
[1741212429681,18.56456102,145.63,145.59,393.51446319]
[1741212430895,18.56456102,145.63,145.59,393.54446319]
[1741212431615,18.56456102,145.63,145.59,386.67596319]
[1741212431800,18.56456102,145.63,145.59,393.54446319]
[1741212432211,18.56456102,145.63,145.59,81.54446319]
[1741212432899,18.56456102,145.63,145.59,74.67596319]
[1741212433109,18.56456102,145.63,145.59,81.54456319]
[1741212435226,18.56456102,145.63,145.59,393.54456319]
[1741212435722,18.56456102,145.63,145.59,81.54456319]
[1741212436505,11.88689978,145.63,145.59,81.54456319]
[1741212437516,11.88689978,145.62,145.59,74.67596319]
[1741212437697,11.88689978,145.63,145.59,74.67596319]
[1741212437898,11.88689978,145.63,145.59,81.54446319]
[1741212438200,81.14216157,145.67,145.59,81.54446319]
[1741212438500,11.88689978,145.63,145.59,81.54446319]
[1741212438712,11.88689978,145.63,145.59,393.54446319]
[1741212440620,11.88689978,145.63,145.59,81.54446319]
[1741212443490,11.88689978,145.63,145.59,393.54446319]
[1741212443695,11.88689978,145.63,145.59,386.67596319]
[1741212445720,11.88689978,145.62,145.59,0.03]
[1741212446021,11.88689978,145.6,145.59,0.03]
[1741212450925,11.88689978,145.6,145.57,0.03]
[1741212451225,11.88689978,145.59,145.57,0.03]
[1741212453003,0.14216157,145.62,145.57,0.03]
[1741212453205,11.88689978,145.59,145.57,0.03]
[1741212463536,11.88689978,145.58,145.57,0.03]
[1741212466441,11.88689978,145.59,145.57,0.03]
[1741212467638,11.88689978,145.61,145.57,0.03]
[1741212468719,0.033,145.6,145.57,0.03]
[1741212469119,0.033,145.6,145.57,11.91689978]
[1741212469537,0.033,145.6,145.57,0.03]
[1741212470153,0.033,145.6,145.57,74.67596319]
[1741212470527,0.033,145.6,145.57,386.67596319]
[1741212472846,0.033,145.6,145.57,74.67596319]
[1741212475856,0.033,145.6,145.57,386.67596319]
[1741212476556,0.033,145.6,145.57,393.54526319]
[1741212478164,0.033,145.6,145.59,11.88689978]
[1741212478662,0.033,145.6,145.58,7.704]
[1741212482069,0.033,145.6,145.58,82.34996319]
[1741212483839,0.033,145.6,145.58,74.64596319]
[1741212485558,0.033,145.6,145.58,81.51496319]
[1741212486540,0.033,145.6,145.58,93.40186297]
[1741212486943,0.033,145.6,145.58,405.40186297]
[1741212487962,0.033,145.6,145.58,542.30186297]
[1741212488167,0.033,145.6,145.58,530.41496319]
[1741212488871,0.033,145.6,145.58,523.54596319]
[1741212493270,11.91989978,145.6,145.58,211.57596319]
[1741212493868,11.91989978,145.6,145.58,74.67596319]
[1741212494370,0.033,145.6,145.58,74.67596319]
[1741212499275,0.033,145.6,145.58,86.56286297]
[1741212499471,0.033,145.6,145.59,38.26394864]
[1741212499771,0.033,145.6,145.59,39.70601005]
[1741212500961,0.033,145.6,145.59,45.13254864]
[1741212502190,0.033,145.6,145.59,357.13254864]
[1741212502394,0.033,145.6,145.59,326.596]
[1741212502583,0.033,145.6,145.59,319.7274]
[1741212502899,0.033,145.6,145.59,531.27336319]
[1741212503689,0.033,145.6,145.59,211.54596319]
[1741212508908,0.033,145.6,145.59,74.64596319]
[1741212513508,0.033,145.6,145.59,112.05111183]
[1741212515115,0.033,145.6,145.59,248.95111183]
[1741212515488,0.033,145.6,145.59,560.95111183]
[1741212516091,0.033,145.6,145.59,569.75055811]
[1741212519120,0.033,145.6,145.59,562.31331183]
[1741212519311,0.033,145.6,145.59,543.66366297]
[1741212519632,0.033,145.6,145.59,525.14776319]
[1741212521445,0.033,145.6,145.59,74.64596319]
[1741212525773,0.033,145.6,145.58,0.03]
[1741212526062,11.88689978,145.59,145.58,0.03]
[1741212528157,22.57871688,145.59,145.58,0.03]
[1741212528353,42.97486574,145.59,145.58,0.03]
[1741212528560,42.97486574,145.59,145.57,0.03]
[1741212528758,11.88689978,145.58,145.57,0.03]
[1741212529956,12.02906135,145.58,145.57,0.03]
[1741212530463,11.88689978,145.58,145.57,0.03]
[1741212530755,38.03729091,145.58,145.53,74.67596319]
[1741212530961,11.88689978,145.57,145.53,74.67596319]
[1741212532785,10.7974105,145.58,145.53,86.56286297]
[1741212533330,11.88689978,145.59,145.53,86.56286297]
[1741212533632,11.88689978,145.59,145.53,93.43396297]
[1741212533828,11.88689978,145.59,145.53,86.56286297]
[1741212534032,11.88689978,145.58,145.53,74.67596319]
[1741212535371,11.88689978,145.58,145.53,211.17596319]
[1741212536376,11.88689978,145.58,145.53,523.17596319]
[1741212536780,11.88689978,145.58,145.53,386.27596319]
[1741212536963,0.033,145.6,145.53,74.27596319]
[1741212536964,11.88689978,145.56,145.53,74.27596319]
[1741212538772,18.82481043,145.6,145.53,74.27596319]
[1741212538977,11.88689978,145.57,145.53,74.27596319]
[1741212540656,11.88689978,145.58,145.53,74.27596319]
[1741212541968,11.88689978,145.58,145.53,74.30596319]
[1741212542661,0.033,145.6,145.53,93.06416297]
[1741212542981,0.033,145.6,145.54,18.75749978]
[1741212543275,11.88689978,145.59,145.54,6.8706]
[1741212543982,11.88689978,145.59,145.53,93.06416297]
[1741212545188,11.88689978,145.58,145.53,74.30596319]
[1741212545379,11.88689978,145.57,145.53,74.30596319]
[1741212545760,11.88689978,145.57,145.53,386.30596319]
[1741212548188,11.88689978,145.58,145.53,393.17726319]
[1741212548485,11.88689978,145.59,145.54,1.6235]
[1741212549885,11.88689978,145.59,145.54,8.4941]
[1741212552477,0.033,145.6,145.55,11.88689978]
[1741212553285,0.033,145.6,145.55,86.16286297]
[1741212553591,0.033,145.6,145.55,93.03306297]
[1741212554186,0.033,145.6,145.55,405.03306297]
[1741212554595,0.033,145.59,145.55,405.03306297]
[1741212555782,0.033,145.59,145.56,18.75639978]
[1741212555972,0.033,145.59,145.56,229.93236297]
[1741212556788,0.033,145.59,145.56,211.17596319]
[1741212556991,11.88689978,145.57,145.54,75.89946319]
[1741212557495,11.88689978,145.56,145.54,75.89946319]
[1741212558282,11.88689978,145.57,145.54,75.89946319]
[1741212559593,11.88689978,145.58,145.54,75.89946319]
[1741212559780,11.91989978,145.59,145.54,82.77036319]
[1741212559985,0.033,145.59,145.54,406.65726297]
[1741212560180,11.88689978,145.57,145.54,75.89946319]
[1741212560379,11.88689978,145.58,145.54,75.89946319]
[1741212575321,11.91989978,145.59,145.54,75.89946319]
[1741212575892,11.88689978,145.58,145.54,75.89946319]
[1741212577218,11.91989978,145.59,145.54,75.89946319]
[1741212580222,11.88689978,145.58,145.54,75.89946319]
[1741212581422,11.88689978,145.58,145.54,75.89946319]
[1741212582827,22.71731028,145.59,145.54,75.89946319]
[1741212584810,22.71731028,145.59,145.54,82.77036319]
[1741212588439,11.91989978,145.59,145.54,82.77036319]
[1741212588601,11.91989978,145.59,145.54,75.89946319]
[1741212589617,11.88689978,145.58,145.54,75.89946319]
[1741212590723,11.88689978,145.55,145.54,75.89946319]
[1741212590898,11.88689978,145.56,145.54,75.89946319]
[1741212591302,11.88689978,145.57,145.54,75.89946319]
[1741212599037,11.88689978,145.57,145.54,74.27596319]
[1741212599238,11.88689978,145.56,145.53,0.03]
[1741212599426,11.88689978,145.55,145.53,0.03]
[1741212599616,11.88689978,145.56,145.53,0.03]
[1741212602328,11.88689978,145.55,145.53,0.03]
[1741212604741,11.88689978,145.54,145.53,0.03]
[1741212607036,12.02906135,145.54,145.53,0.03]
[1741212608133,27.45527556,145.54,145.5,0.03]
[1741212608336,11.88689978,145.53,145.5,0.03]
[1741212610744,10.7974105,145.54,145.5,0.03]
[1741212610945,11.88689978,145.53,145.5,0.03]
[1741212611845,11.88689978,145.52,145.5,0.03]
[1741212612946,10.7974105,145.55,145.5,0.03]
[1741212612947,11.88689978,145.53,145.5,0.03]
[1741212625554,11.88689978,145.52,145.5,0.03]
[1741212630678,11.91989978,145.53,145.5,0.03]
[1741212632800,11.88689978,145.52,145.5,0.03]
[1741212633012,11.88689978,145.51,145.5,0.03]
[1741212633376,11.88689978,145.52,145.5,0.03]
[1741212635600,0.033,145.53,145.51,20.01729978]
[1741212635917,0.033,145.53,145.52,11.88689978]
[1741212636220,0.033,145.53,145.51,94.29326297]
[1741212637320,0.033,145.53,145.51,101.16546297]
[1741212638121,0.033,145.53,145.52,11.88689978]
[1741212638693,0.033,145.53,145.52,323.88689978]
[1741212638919,0.033,145.53,145.52,330.75879978]
[1741212642421,0.033,145.53,145.52,541.93476297]
[1741212647834,11.91989978,145.53,145.52,74.27596319]
[1741212649417,0.033,145.53,145.52,74.27596319]
[1741212650733,0.033,145.53,145.52,74.30596319]
[1741212651330,0.033,145.53,145.52,0.03]
[1741212663046,11.91989978,145.53,145.52,0.03]
[1741212666226,0.033,145.53,145.52,0.03]
[1741212666427,11.91989978,145.53,145.52,0.03]
[1741212671630,0.033,145.53,145.52,0.03]
[1741212673463,11.91989978,145.53,145.52,0.03]
[1741212673768,0.033,145.53,145.52,0.03]
[1741212673972,11.91989978,145.53,145.52,0.03]
[1741212675670,0.033,145.53,145.52,0.03]
[1741212676773,11.91989978,145.53,145.52,0.03]
[1741212677474,0.033,145.53,145.52,0.03]
[1741212684656,0.033,145.53,145.52,19.55489978]
[1741212684855,0.033,145.53,145.52,7.668]
[1741212686182,0.033,145.53,145.52,319.668]
[1741212687781,0.033,145.53,145.52,7.668]
[1741212688663,0.033,145.53,145.52,26.42679978]
[1741212688988,0.033,145.53,145.52,218.84396319]
[1741212690792,0.033,145.53,145.52,530.84396319]
[1741212691387,0.033,145.53,145.52,542.73086297]
[1741212692989,0.033,145.53,145.52,405.83086297]
[1741212693368,0.033,145.53,145.52,412.70276297]
[1741212693962,0.033,145.53,145.52,100.70276297]
[1741212697600,0.033,145.53,145.52,88.81586319]
[1741212698612,0.033,145.53,145.52,81.94396319]
[1741212698777,0.033,145.53,145.52,88.81586319]
[1741212701202,0.033,145.53,145.52,81.94396319]
[1741212701587,0.033,145.53,145.52,88.81586319]
[1741212702303,0.033,145.53,145.52,74.30596319]
[1741212702479,11.91989978,145.53,145.52,0.03]
[1741212704694,0.033,145.53,145.52,0.03]
[1741212707603,11.91989978,145.53,145.52,0.03]
[1741212710311,38.0758793,145.53,145.5,0.03]
[1741212710608,11.88689978,145.52,145.5,0.03]
[1741212711602,11.88689978,145.51,145.5,0.03]
[1741212723021,30.53654864,145.51,145.5,0.03]
[1741212723689,30.53654864,145.51,145.46,0.03]
[1741212724006,11.88689978,145.47,145.46,0.03]
[1741212725011,81.0,145.5,145.46,0.03]
[1741212725213,11.88689978,145.49,145.46,0.03]
[1741212726118,22.68698717,145.49,145.46,0.03]
[1741212726317,10.80008739,145.49,145.46,0.03]
[1741212728006,11.88689978,145.51,145.46,0.03]
[1741212728518,11.88689978,145.5,145.46,0.03]
[1741212729100,11.88689978,145.49,145.46,0.03]
[1741212730518,0.14216157,145.5,145.46,0.03]
[1741212730711,11.88689978,145.47,145.46,0.03]
[1741212731116,10.86943578,145.47,145.46,0.03]
[1741212733015,10.80008739,145.49,145.46,0.03]
[1741212734124,10.80008739,145.49,145.46,74.30596319]
[1741212734522,11.88689978,145.51,145.46,74.30596319]
[1741212734825,11.88689978,145.51,145.46,81.18046319]
[1741212735220,0.033,145.52,145.47,11.88689978]
[1741212735537,0.033,145.52,145.49,11.88689978]
[1741212735730,0.033,145.52,145.49,86.16286297]
[1741212736524,0.033,145.52,145.5,1.7252]
[1741212736716,0.033,145.52,145.51,18.41609978]
[1741212737229,0.033,145.52,145.51,6.5292]
[1741212740536,0.033,145.52,145.51,80.80516319]
[1741212745528,11.91989978,145.52,145.51,74.27596319]
[1741212746324,0.033,145.52,145.51,74.27596319]
[1741212746523,0.033,145.52,145.5,1.7252]
[1741212747454,0.033,145.52,145.49,211.20596319]
[1741212747455,11.88689978,145.51,145.49,211.20596319]
[1741212747963,11.88689978,145.5,145.49,211.20596319]
[1741212750072,11.88689978,145.5,145.49,0.03]
[1741212750960,0.033,145.52,145.49,0.03]
[1741212751164,0.033,145.52,145.5,11.88689978]
[1741212751372,0.033,145.52,145.5,18.01969978]
[1741212751958,0.033,145.52,145.51,11.88689978]
[1741212752154,0.033,145.53,145.52,0.14216157]
[1741212752459,0.033,145.53,145.52,243.29714568]
[1741212752753,0.033,145.53,145.52,241.8546734]
[1741212752930,0.033,145.53,145.52,560.7265734]
[1741212754662,0.033,145.53,145.52,560.55158784]
[1741212760265,0.033,145.53,145.52,523.17596319]
[1741212760561,0.033,145.53,145.52,211.17596319]
[1741212760965,0.033,145.53,145.52,229.75977741]
[1741212762067,0.033,145.53,145.52,211.17596319]
[1741212762861,0.033,145.53,145.52,229.75977741]
[1741212763360,0.033,145.53,145.52,541.75977741]
[1741212766563,0.033,145.53,145.52,548.63167741]
[1741212767565,0.033,145.53,145.52,255.42348784]
[1741212770370,0.033,145.53,145.52,586.2916252]
[1741212770868,0.033,145.53,145.52,274.2916252]
[1741212771166,0.033,145.53,145.52,255.70781098]
[1741212773942,0.033,145.56,145.55,20.0]
[1741212774147,0.033,145.56,145.55,278.60632802]
[1741212774375,0.033,145.56,145.55,277.16427255]
[1741212774554,0.033,145.56,145.55,270.46581573]
[1741212775157,0.033,145.56,145.55,277.33621573]
[1741212775356,0.033,145.56,145.55,265.02437362]
[1741212775557,0.033,145.56,145.55,276.90973102]
[1741212777358,0.033,145.56,145.55,588.90973102]
[1741212778684,0.033,145.56,145.55,246.23256319]
[1741212779176,0.033,145.56,145.55,258.11792059]
[1741212780360,0.033,145.56,145.55,276.90973102]
[1741212781352,0.033,145.56,145.55,246.23256319]
[1741212781668,0.033,145.56,145.55,558.23256319]
[1741212781977,0.033,145.56,145.55,570.11792059]
[1741212782773,0.033,145.56,145.55,558.23256319]
[1741212782963,0.033,145.56,145.55,570.11792059]
[1741212783576,0.033,145.56,145.55,543.17596319]
[1741212784983,0.033,145.56,145.55,74.27596319]
[1741212788094,0.033,145.56,145.55,393.14636319]
[1741212788486,0.033,145.56,145.55,386.27596319]
[1741212790980,0.033,145.56,145.55,74.27596319]
[1741212795873,0.033,145.56,145.55,87.60381294]
[1741212796564,0.033,145.56,145.55,94.47421294]
[1741212797488,0.033,145.56,145.55,94.61637451]
[1741212797687,0.033,145.56,145.55,113.26602337]
[1741212799894,0.033,145.56,145.55,231.37421294]
[1741212800090,0.033,145.56,145.55,218.04636319]
[1741212800601,0.033,145.56,145.55,530.04636319]
[1741212804280,0.033,145.56,145.55,523.17596319]
[1741212805994,0.033,145.56,145.55,530.04636319]
[1741212806187,0.033,145.56,145.55,523.17596319]
[1741212807096,0.033,145.56,145.55,530.04636319]
[1741212810386,0.033,145.56,145.55,560.72353102]
[1741212810592,0.033,145.56,145.55,255.33483102]
[1741212810791,0.033,145.56,145.55,257.00173102]
[1741212813509,0.033,145.56,145.55,569.00173102]
[1741212814406,0.033,145.56,145.55,569.28605416]
[1741212825310,0.033,145.56,145.55,557.11637362]
[1741212829031,0.033,145.56,145.55,530.04636319]